{"text_format":"1","workbook":"xlsx","n_sheets":4,"sheets":["عضو 1","عضو 2","عضو 3","رئيس_اللجنة"],"not_rendered":{"charts":0,"images":4,"macros":1,"external_links":0,"defined_names":0,"comments":0,"pivot_tables":0},"unopened":[],"bounds":{"document_bytes":16777216,"sheet_cells":100000,"rows_first":2000,"rows_last":500,"rows_between":2000,"halvings":0,"cell_chars":16384,"cell_head_chars":4096},"cells_cut":0,"cells_raw":0,"read":"whole","date_system":"1900"}

{"sheet":"عضو 1","index":0,"n_rows":36,"n_cols":26,"rows_kept":36,"cut":false,"hidden":false,"merged":[[35,4,35,6],[35,9,35,11],[7,3,7,4],[7,5,7,6],[7,7,7,8],[7,11,8,11],[7,12,8,12],[6,1,6,2],[6,3,6,4],[6,6,6,7],[6,8,6,9],[7,9,7,10],[7,0,7,2]]}
[]
[null,null,null,null,null,null,null,null,null,null,null,null,null,null,"الأولى","جنوب المدينة","ü"]
[null,null,null,null,null,null,null,null,null,null,null,null,null,null,"الثانية","شرق المدينة","û"]
[null,null,null,null,null,null,null,null,null,null,null,null,null,null,"الثالثة","شمال المدينة","ليلي"]
[null,null,null,null,null,null,null,null,null,null,null,null,null,null,"الرابعة","غرب المدينة"]
[null,null,null,null,null,"متابعة عضو لجنة تدقيق بيانات الطلاب - الفصل الدراسي الثاني - العام الدراسي 1439/1440هـ"]
[null,"متابعة تدقيق بيانات  اللجنة  /",null,"الأولى",null,null,"مكتب التعليم /",null,null,null,null,null,null,null,"الخامسة","الحناكية"]
["بيانات الطـــــــــــــــــــــــــــــــــــــلاب",null,null,"النظام الدراسي",null,"ملاحظات 1",null,"ملاحظات 2",null,"طباعة الشهادات",null,"ملاحظات الإدارة","الشهادات المحجوزة",null,"السادسة","بدر",null,null,null,null,null,null,null,"",null,""]
["ت","المدرسة","عدد الطلاب","فصلي","مقررات","عدد","نسبة","عدد","نسبة","نعم","لا",null,null,null,null,"خيبر",null,null,null,null,null,null,null,"",null,""]
[1,"احمد",100,null,null,50,0.5,10,0.9,null,null,null,null,null,null,"وادي الفرع"]
[2,"إبراهيم",100,null,null,50,0.5,10,0.9]
[3,"ادهم",100,null,null,50,0.5,10,0.9]
[4,"ايمن",100,null,null,50,0.5,10,0.9]
[5,null,null,null,null,null,"",null,""]
[6,null,null,null,null,null,"",null,""]
[7,null,null,null,null,null,"",null,""]
[8,null,null,null,null,null,"",null,""]
[9,null,null,null,null,null,"",null,""]
[10,null,null,null,null,null,"",null,""]
[11,null,null,null,null,null,"",null,""]
[12,null,null,null,null,null,"",null,""]
[13,null,null,null,null,null,"",null,""]
[14,null,null,null,null,null,"",null,""]
[15,null,null,null,null,null,"",null,""]
[16,null,null,null,null,null,"",null,""]
[17,null,null,null,null,null,"",null,""]
[18,null,null,null,null,null,"",null,""]
[19,null,null,null,null,null,"",null,""]
[20,null,null,null,null,null,"",null,""]
[21,null,null,null,null,null,"",null,""]
[22,null,null,null,null,null,"",null,""]
[23,null,null,null,null,null,"",null,""]
[24,null,null,null,null,null,"",null,""]
[25,null,null,null,null,null,"",null,""]
[]
[null,"عضو اللجنة",null,"الاسم /",null,null,null,null,"التوقيع/"]

{"sheet":"عضو 2","index":1,"n_rows":36,"n_cols":17,"rows_kept":36,"cut":false,"hidden":false,"merged":[[35,4,35,6],[35,9,35,11],[6,1,6,2],[6,3,6,4],[6,6,6,7],[6,8,6,9],[7,7,7,8],[7,9,7,10],[7,3,7,4],[7,5,7,6],[7,0,7,2],[7,11,8,11],[7,12,8,12]]}
[]
[null,null,null,null,null,null,null,null,null,null,null,null,null,null,"الأولى","جنوب المدينة","ü"]
[null,null,null,null,null,null,null,null,null,null,null,null,null,null,"الثانية","شرق المدينة","û"]
[null,null,null,null,null,null,null,null,null,null,null,null,null,null,"الثالثة","شمال المدينة","ليلي"]
[null,null,null,null,null,null,null,null,null,null,null,null,null,null,"الرابعة","غرب المدينة"]
[null,null,null,null,null,"متابعة عضو لجنة تدقيق بيانات الطلاب - الفصل الدراسي الثاني - العام الدراسي 1439/1440هـ"]
[null,"متابعة تدقيق بيانات  اللجنة  /",null,"الأولى",null,null,"مكتب التعليم /",null,null,null,null,null,null,null,"الخامسة","الحناكية"]
["بيانات الطـــــــــــــــــــــــــــــــــــــلاب",null,null,"النظام الدراسي",null,"ملاحظات 1",null,"ملاحظات 2",null,"طباعة الشهادات",null,"ملاحظات الإدارة","الشهادات المحجوزة",null,"السادسة","بدر"]
["ت","المدرسة","عدد الطلاب","فصلي","مقررات","عدد","نسبة","عدد","نسبة","نعم","لا",null,null,null,null,"خيبر"]
[1,"عمر",100,null,null,50,0.5,10,0.9,null,null,null,null,null,null,"وادي الفرع"]
[2,"عثمان",100,null,null,50,0.5,10,0.9]
[3,"على",100,null,null,50,0.5,10,0.9]
[4,null,null,null,null,null,"",null,""]
[5,null,null,null,null,null,"",null,""]
[6,null,null,null,null,null,"",null,""]
[7,null,null,null,null,null,"",null,""]
[8,null,null,null,null,null,"",null,""]
[9,null,null,null,null,null,"",null,""]
[10,null,null,null,null,null,"",null,""]
[11,null,null,null,null,null,"",null,""]
[12,null,null,null,null,null,"",null,""]
[13,null,null,null,null,null,"",null,""]
[14,null,null,null,null,null,"",null,""]
[15,null,null,null,null,null,"",null,""]
[16,null,null,null,null,null,"",null,""]
[17,null,null,null,null,null,"",null,""]
[18,null,null,null,null,null,"",null,""]
[19,null,null,null,null,null,"",null,""]
[20,null,null,null,null,null,"",null,""]
[21,null,null,null,null,null,"",null,""]
[22,null,null,null,null,null,"",null,""]
[23,null,null,null,null,null,"",null,""]
[24,null,null,null,null,null,"",null,""]
[25,null,null,null,null,null,"",null,""]
[]
[null,"عضو اللجنة",null,"الاسم /",null,null,null,null,"التوقيع/"]

{"sheet":"عضو 3","index":2,"n_rows":36,"n_cols":17,"rows_kept":36,"cut":false,"hidden":false,"merged":[[35,4,35,6],[35,9,35,11],[6,1,6,2],[6,3,6,4],[6,6,6,7],[6,8,6,9],[7,7,7,8],[7,9,7,10],[7,3,7,4],[7,5,7,6],[7,0,7,2],[7,11,8,11],[7,12,8,12]]}
[]
[null,null,null,null,null,null,null,null,null,null,null,null,null,null,"الأولى","جنوب المدينة","ü"]
[null,null,null,null,null,null,null,null,null,null,null,null,null,null,"الثانية","شرق المدينة","û"]
[null,null,null,null,null,null,null,null,null,null,null,null,null,null,"الثالثة","شمال المدينة","ليلي"]
[null,null,null,null,null,null,null,null,null,null,null,null,null,null,"الرابعة","غرب المدينة"]
[null,null,null,null,null,"متابعة عضو لجنة تدقيق بيانات الطلاب - الفصل الدراسي الثاني - العام الدراسي 1439/1440هـ"]
[null,"متابعة تدقيق بيانات  اللجنة  /",null,"الأولى",null,null,"مكتب التعليم /",null,null,null,null,null,null,null,"الخامسة","الحناكية"]
["بيانات الطـــــــــــــــــــــــــــــــــــــلاب",null,null,"النظام الدراسي",null,"ملاحظات 1",null,"ملاحظات 2",null,"طباعة الشهادات",null,"ملاحظات الإدارة","الشهادات المحجوزة",null,"السادسة","بدر"]
["ت","المدرسة","عدد الطلاب","فصلي","مقررات","عدد","نسبة","عدد","نسبة","نعم","لا",null,null,null,null,"خيبر"]
[1,"محمد",100,null,null,50,0.5,10,0.9,null,null,null,null,null,null,"وادي الفرع"]
[2,"محمود",100,null,null,50,0.5,10,0.9]
[3,"مصطفى",100,null,null,50,0.5,10,0.9]
[4,null,null,null,null,null,"",null,""]
[5,null,null,null,null,null,"",null,""]
[6,null,null,null,null,null,"",null,""]
[7,null,null,null,null,null,"",null,""]
[8,null,null,null,null,null,"",null,""]
[9,null,null,null,null,null,"",null,""]
[10,null,null,null,null,null,"",null,""]
[11,null,null,null,null,null,"",null,""]
[12,null,null,null,null,null,"",null,""]
[13,null,null,null,null,null,"",null,""]
[14,null,null,null,null,null,"",null,""]
[15,null,null,null,null,null,"",null,""]
[16,null,null,null,null,null,"",null,""]
[17,null,null,null,null,null,"",null,""]
[18,null,null,null,null,null,"",null,""]
[19,null,null,null,null,null,"",null,""]
[20,null,null,null,null,null,"",null,""]
[21,null,null,null,null,null,"",null,""]
[22,null,null,null,null,null,"",null,""]
[23,null,null,null,null,null,"",null,""]
[24,null,null,null,null,null,"",null,""]
[25,null,null,null,null,null,"",null,""]
[]
[null,"عضو اللجنة",null,"الاسم /",null,null,null,null,"التوقيع/"]

{"sheet":"رئيس_اللجنة","index":3,"n_rows":90,"n_cols":22,"rows_kept":90,"cut":false,"hidden":false,"merged":[[62,4,62,6],[62,9,62,11],[89,4,89,6],[89,9,89,11],[6,1,6,2],[6,3,6,4],[6,6,6,7],[6,8,6,9],[7,3,7,4],[7,5,7,6],[7,7,7,8],[7,9,7,10],[7,0,7,2],[7,11,8,11],[7,12,8,12],[7,13,7,14]]}
[]
[]
[null,null,null,null,null,null,null,null,null,null,null,null,null,null,null,null,null,null,null,null,null,""]
[]
[null,null,null,null,null,null,null,null,null,null,null,null,null,null,null,null,null,null,null,null,null,""]
[null,null,null,null,null,"متابعة رئيس لجنة تدقيق بيانات الطلاب - الفصل الدراسي الثاني - العام الدراسي 1439/1440هـ",null,null,null,null,null,null,null,null,null,null,null,null,null,null,null,""]
[null,"متابعة تدقيق بيانات  اللجنة  /",null,"الأولى",null,null,"مكتب التعليم /",null,null,null,null,null,null,null,null,null,null,null,null,null,null,""]
["بيانات الطـــــــــــــــــــــــــــــــــــــلاب",null,null,"النظام الدراسي",null,"ملاحظات 1",null,"ملاحظات 2",null,"طباعة الشهادات",null,"ملاحظات الإدارة","الشهادات المحجوزة","متابعة الإرسال",null,null,null,null,null,null,null,""]
["ت","المدرسة","عدد الطلاب","فصلي","مقررات","عدد","نسبة","عدد","نسبة","نعم","لا",null,null,1,2,null,null,null,null,null,null,""]
[{"$f":"IF(B10=\"\",\"\",SUBTOTAL(3,$B$10:B10))","v":""}]
[{"$f":"IF(B11=\"\",\"\",SUBTOTAL(3,$B$10:B11))","v":""}]
[{"$f":"IF(B12=\"\",\"\",SUBTOTAL(3,$B$10:B12))","v":""}]
[{"$f":"IF(B13=\"\",\"\",SUBTOTAL(3,$B$10:B13))","v":""},null,null,null,null,null,null,null,null,null,null,null,null,null,null,null,null,null,null,null,null,""]
[{"$f":"IF(B14=\"\",\"\",SUBTOTAL(3,$B$10:B14))","v":""},null,null,null,null,null,null,null,null,null,null,null,null,null,null,null,null,null,null,null,null,""]
[{"$f":"IF(B15=\"\",\"\",SUBTOTAL(3,$B$10:B15))","v":""},null,null,null,null,null,null,null,null,null,null,null,null,null,null,null,null,null,null,null,null,""]
[{"$f":"IF(B16=\"\",\"\",SUBTOTAL(3,$B$10:B16))","v":""},null,null,null,null,null,null,null,null,null,null,null,null,null,null,null,null,null,null,null,null,""]
[{"$f":"IF(B17=\"\",\"\",SUBTOTAL(3,$B$10:B17))","v":""},null,null,null,null,null,null,null,null,null,null,null,null,null,null,null,null,null,null,null,null,""]
[{"$f":"IF(B18=\"\",\"\",SUBTOTAL(3,$B$10:B18))","v":""},null,null,null,null,null,null,null,null,null,null,null,null,null,null,null,null,null,null,null,null,""]
[{"$f":"IF(B19=\"\",\"\",SUBTOTAL(3,$B$10:B19))","v":""},null,null,null,null,null,null,null,null,null,null,null,null,null,null,null,null,null,null,null,null,""]
[{"$f":"IF(B20=\"\",\"\",SUBTOTAL(3,$B$10:B20))","v":""},null,null,null,null,null,"",null,"",null,null,null,null,null,null,null,null,null,null,null,null,""]
[{"$f":"IF(B21=\"\",\"\",SUBTOTAL(3,$B$10:B21))","v":""},null,null,null,null,null,"",null,""]
[{"$f":"IF(B22=\"\",\"\",SUBTOTAL(3,$B$10:B22))","v":""},null,null,null,null,null,"",null,""]
[{"$f":"IF(B23=\"\",\"\",SUBTOTAL(3,$B$10:B23))","v":""},null,null,null,null,null,"",null,""]
[{"$f":"IF(B24=\"\",\"\",SUBTOTAL(3,$B$10:B24))","v":""},null,null,null,null,null,"",null,"",null,null,null,null,null,null,null,null,null,null,null,null,""]
[{"$f":"IF(B25=\"\",\"\",SUBTOTAL(3,$B$10:B25))","v":""},null,null,null,null,null,"",null,"",null,null,null,null,null,null,null,null,null,null,null,null,""]
[{"$f":"IF(B26=\"\",\"\",SUBTOTAL(3,$B$10:B26))","v":""},null,null,null,null,null,"",null,"",null,null,null,null,null,null,null,null,null,null,null,null,""]
[{"$f":"IF(B27=\"\",\"\",SUBTOTAL(3,$B$10:B27))","v":""},null,null,null,null,null,"",null,"",null,null,null,null,null,null,null,null,null,null,null,null,""]
[{"$f":"IF(B28=\"\",\"\",SUBTOTAL(3,$B$10:B28))","v":""},null,null,null,null,null,"",null,"",null,null,null,null,null,null,null,null,null,null,null,null,""]
[{"$f":"IF(B29=\"\",\"\",SUBTOTAL(3,$B$10:B29))","v":""},null,null,null,null,null,"",null,"",null,null,null,null,null,null,null,null,null,null,null,null,""]
[{"$f":"IF(B30=\"\",\"\",SUBTOTAL(3,$B$10:B30))","v":""},null,null,null,null,null,"",null,"",null,null,null,null,null,null,null,null,null,null,null,null,""]
[{"$f":"IF(B31=\"\",\"\",SUBTOTAL(3,$B$10:B31))","v":""},null,null,null,null,null,"",null,"",null,null,null,null,null,null,null,null,null,null,null,null,""]
[{"$f":"IF(B32=\"\",\"\",SUBTOTAL(3,$B$10:B32))","v":""},null,null,null,null,null,"",null,"",null,null,null,null,null,null,null,null,null,null,null,null,""]
[{"$f":"IF(B33=\"\",\"\",SUBTOTAL(3,$B$10:B33))","v":""},null,null,null,null,null,"",null,"",null,null,null,null,null,null,null,null,null,null,null,null,""]
[{"$f":"IF(B34=\"\",\"\",SUBTOTAL(3,$B$10:B34))","v":""},null,null,null,null,null,"",null,"",null,null,null,null,null,null,null,null,null,null,null,null,""]
[{"$f":"IF(B35=\"\",\"\",SUBTOTAL(3,$B$10:B35))","v":""},null,null,null,null,null,"",null,"",null,null,null,null,null,null,null,null,null,null,null,null,""]
[{"$f":"IF(B36=\"\",\"\",SUBTOTAL(3,$B$10:B36))","v":""},null,null,null,null,null,"",null,"",null,null,null,null,null,null,null,null,null,null,null,null,""]
[{"$f":"IF(B37=\"\",\"\",SUBTOTAL(3,$B$10:B37))","v":""},null,null,null,null,null,"",null,"",null,null,null,null,null,null,null,null,null,null,null,null,""]
[{"$f":"IF(B38=\"\",\"\",SUBTOTAL(3,$B$10:B38))","v":""},null,null,null,null,null,"",null,"",null,null,null,null,null,null,null,null,null,null,null,null,""]
[{"$f":"IF(B39=\"\",\"\",SUBTOTAL(3,$B$10:B39))","v":""},null,null,null,null,null,"",null,"",null,null,null,null,null,null,null,null,null,null,null,null,""]
[{"$f":"IF(B40=\"\",\"\",SUBTOTAL(3,$B$10:B40))","v":""},null,null,null,null,null,"",null,"",null,null,null,null,null,null,null,null,null,null,null,null,""]
[{"$f":"IF(B41=\"\",\"\",SUBTOTAL(3,$B$10:B41))","v":""},null,null,null,null,null,"",null,"",null,null,null,null,null,null,null,null,null,null,null,null,""]
[{"$f":"IF(B42=\"\",\"\",SUBTOTAL(3,$B$10:B42))","v":""},null,null,null,null,null,null,null,null,null,null,null,null,null,null,null,null,null,null,null,null,""]
[{"$f":"IF(B43=\"\",\"\",SUBTOTAL(3,$B$10:B43))","v":""},null,null,null,null,null,null,null,null,null,null,null,null,null,null,null,null,null,null,null,null,""]
[{"$f":"IF(B44=\"\",\"\",SUBTOTAL(3,$B$10:B44))","v":""},null,null,null,null,null,null,null,null,null,null,null,null,null,null,null,null,null,null,null,null,""]
[{"$f":"IF(B45=\"\",\"\",SUBTOTAL(3,$B$10:B45))","v":""},null,null,null,null,null,null,null,null,null,null,null,null,null,null,null,null,null,null,null,null,""]
[{"$f":"IF(B46=\"\",\"\",SUBTOTAL(3,$B$10:B46))","v":""}]
[{"$f":"IF(B47=\"\",\"\",SUBTOTAL(3,$B$10:B47))","v":""}]
[{"$f":"IF(B48=\"\",\"\",SUBTOTAL(3,$B$10:B48))","v":""}]
[{"$f":"IF(B49=\"\",\"\",SUBTOTAL(3,$B$10:B49))","v":""}]
[{"$f":"IF(B50=\"\",\"\",SUBTOTAL(3,$B$10:B50))","v":""}]
[{"$f":"IF(B51=\"\",\"\",SUBTOTAL(3,$B$10:B51))","v":""}]
[{"$f":"IF(B52=\"\",\"\",SUBTOTAL(3,$B$10:B52))","v":""}]
[{"$f":"IF(B53=\"\",\"\",SUBTOTAL(3,$B$10:B53))","v":""}]
[{"$f":"IF(B54=\"\",\"\",SUBTOTAL(3,$B$10:B54))","v":""}]
[{"$f":"IF(B55=\"\",\"\",SUBTOTAL(3,$B$10:B55))","v":""}]
[{"$f":"IF(B56=\"\",\"\",SUBTOTAL(3,$B$10:B56))","v":""}]
[{"$f":"IF(B57=\"\",\"\",SUBTOTAL(3,$B$10:B57))","v":""}]
[{"$f":"IF(B58=\"\",\"\",SUBTOTAL(3,$B$10:B58))","v":""}]
[{"$f":"IF(B59=\"\",\"\",SUBTOTAL(3,$B$10:B59))","v":""}]
[{"$f":"IF(B60=\"\",\"\",SUBTOTAL(3,$B$10:B60))","v":""}]
[{"$f":"IF(B61=\"\",\"\",SUBTOTAL(3,$B$10:B61))","v":""}]
[{"$f":"IF(B62=\"\",\"\",SUBTOTAL(3,$B$10:B62))","v":""}]
[{"$f":"IF(B63=\"\",\"\",SUBTOTAL(3,$B$10:B63))","v":""}]
[{"$f":"IF(B64=\"\",\"\",SUBTOTAL(3,$B$10:B64))","v":""}]
[{"$f":"IF(B65=\"\",\"\",SUBTOTAL(3,$B$10:B65))","v":""}]
[{"$f":"IF(B66=\"\",\"\",SUBTOTAL(3,$B$10:B66))","v":""}]
[{"$f":"IF(B67=\"\",\"\",SUBTOTAL(3,$B$10:B67))","v":""}]
[{"$f":"IF(B68=\"\",\"\",SUBTOTAL(3,$B$10:B68))","v":""}]
[{"$f":"IF(B69=\"\",\"\",SUBTOTAL(3,$B$10:B69))","v":""}]
[{"$f":"IF(B70=\"\",\"\",SUBTOTAL(3,$B$10:B70))","v":""}]
[{"$f":"IF(B71=\"\",\"\",SUBTOTAL(3,$B$10:B71))","v":""}]
[{"$f":"IF(B72=\"\",\"\",SUBTOTAL(3,$B$10:B72))","v":""}]
[{"$f":"IF(B73=\"\",\"\",SUBTOTAL(3,$B$10:B73))","v":""}]
[{"$f":"IF(B74=\"\",\"\",SUBTOTAL(3,$B$10:B74))","v":""}]
[{"$f":"IF(B75=\"\",\"\",SUBTOTAL(3,$B$10:B75))","v":""}]
[{"$f":"IF(B76=\"\",\"\",SUBTOTAL(3,$B$10:B76))","v":""}]
[{"$f":"IF(B77=\"\",\"\",SUBTOTAL(3,$B$10:B77))","v":""}]
[{"$f":"IF(B78=\"\",\"\",SUBTOTAL(3,$B$10:B78))","v":""}]
[{"$f":"IF(B79=\"\",\"\",SUBTOTAL(3,$B$10:B79))","v":""}]
[{"$f":"IF(B80=\"\",\"\",SUBTOTAL(3,$B$10:B80))","v":""}]
[{"$f":"IF(B81=\"\",\"\",SUBTOTAL(3,$B$10:B81))","v":""}]
[{"$f":"IF(B82=\"\",\"\",SUBTOTAL(3,$B$10:B82))","v":""}]
[{"$f":"IF(B83=\"\",\"\",SUBTOTAL(3,$B$10:B83))","v":""}]
[{"$f":"IF(B84=\"\",\"\",SUBTOTAL(3,$B$10:B84))","v":""}]
[{"$f":"IF(B85=\"\",\"\",SUBTOTAL(3,$B$10:B85))","v":""}]
[{"$f":"IF(B86=\"\",\"\",SUBTOTAL(3,$B$10:B86))","v":""}]
[{"$f":"IF(B87=\"\",\"\",SUBTOTAL(3,$B$10:B87))","v":""}]
[{"$f":"IF(B88=\"\",\"\",SUBTOTAL(3,$B$10:B88))","v":""}]
[{"$f":"IF(B89=\"\",\"\",SUBTOTAL(3,$B$10:B89))","v":""}]
[{"$f":"IF(B90=\"\",\"\",SUBTOTAL(3,$B$10:B90))","v":""}]